Cogmind - Beta 14 @@@ ROGUE MODE // 2025.01.04 @ 14:23:15 Player: jumpy Result: Destroyed by D-53 Grenadier with Mini Grenade Launcher Performance ------------- Evolutions (1) 500 Regions Visited (3) 600 Robots Destroyed (3) 15 Value Destroyed (84) 84 Prototype IDs (0) 0 Alien Tech Used (0) 0 Bonus (0) 0 TOTAL SCORE: 1199 Bonus ------- None Cogmind --------- Core Integrity 0/400 Matter 283/300 Energy 99/100 System Corruption 0% Temperature Cool (5) Movement Core (100) Ox1 Location -9/Mines Parts ------- > --- POWER (1) -------- (None) > --- PROPULSION (4) --- (None) > --- UTILITY (2) ------ Small Storage Unit Structural Scanner > --- WEAPON (2) ------- (None) > --- INVENTORY (8) ---- Light Ion Engine Peak State ------------ > --- POWER ------------ Light Ion Engine > --- PROPULSION ------- Aluminum Leg Aluminum Leg Aluminum Leg > --- UTILITY ---------- Small Storage Unit Structural Scanner > --- WEAPON ----------- EM Pulse Gun Medium Laser > --- INVENTORY -------- Light Ion Engine [Rating: 8] Favorites ----------- Power Light Ion Engine Engine Light Ion Engine Propulsion Aluminum Leg Leg Aluminum Leg Utility Small Storage Unit Device Structural Scanner Storage Small Storage Unit Weapon EM Pulse Gun Energy Gun EM Pulse Gun Ballistic Gun Assault Rifle Build | -11 -10 -9 -9 ------- Run | Yrd Mat Mat Min Slots Evolved 2 | . . 2 . Power . | . . . . Propulsion 2 | . . 2 . Utility . | . . . . Weapon . | . . . . Parts Attached 12 | 6 5 1 . Power 3 | 1 2 . . Engine 3 | 1 2 . . Core . | . . . . Reactor . | . . . . Propulsion 3 | 2 . 1 . Treads . | . . . . Leg 3 | 2 . 1 . Wheel . | . . . . Hover . | . . . . Flight . | . . . . Utility 2 | 1 1 . . Device 1 | . 1 . . Storage 1 | 1 . . . Processor . | . . . . Hackware . | . . . . Protection . | . . . . Artifact . | . . . . Weapon 4 | 2 2 . . Energy Gun 3 | 1 2 . . Energy Cannon . | . . . . Ballistic Gun 1 | 1 . . . Ballistic Cannon . | . . . . Launcher . | . . . . Special Weapon . | . . . . Impact Weapon . | . . . . Slashing Weapon . | . . . . Piercing Weapon . | . . . . Special Melee Weapon . | . . . . Unidentified Prototypes . | . . . . Parts Lost 6 | . . . 6 Power 1 | . . . 1 Propulsion 3 | . . . 3 Utility . | . . . . Weapon 2 | . . . 2 Highest Loss Streak 6 | . . . 6 To Critical Strikes . | . . . . Average Slot Usage (%) 83 | . 83 88 71 Engine 12 | . 12 11 11 Leg 28 | . 28 33 24 Device 5 | . 1 11 11 Storage 12 | . 14 11 11 Energy Gun 15 | . 13 22 13 Ballistic Gun 8 | . 12 . . Peak Build Rating 8 | 6 7 8 8 Average Rating 6 | 4 5 8 6 On Entrance 5 | . 6 7 8 Naked Turns . | . . . . Heaviest Build 15 | 12 15 13 13 Greatest Support 30 | 20 20 30 30 Greatest Overweight (x) 2 | 2 . . 2 Average Overweight (x) . | . . . . Largest Inventory Capacity 8 | 8 8 8 8 Average Capacity 7 | 6 8 8 8 Most Carried 4 | 2 4 1 1 Average Carried 1 | 1 2 1 1 Final Capacity 8 | 8 8 8 8 Final Carried 2 | 2 2 1 1 Class Distribution -------------------- 100% | Mutant Dominant Class ---------------- Mutant | -10/Materials Mutant | -9/Materials Mutant | -9/Mines Resources | -11 -10 -9 -9 ----------- Run | Yrd Mat Mat Min Matter Collected 292 | 192 100 . . Remotely . | . . . . Salvage Created 168 | . 100 18 50 Parts 4 | . 3 1 . Haulers Intercepted . | . . . . Recyclers Shooed . | . . . . Parts Field Recycled . | . . . . Retrieved Matter . | . . . . Parts Self-Destructed . | . . . . Prevented . | . . . . Kills | -11 -10 -9 -9 ------- Run | Yrd Mat Mat Min Combat Hostiles Destroyed 6 | . 2 . 4 Guns 6 | . 2 . 4 Classes Destroyed 3 | . 1 1 1 Operator 1 | . . 1 . Grunt 2 | . 2 . . Assembled 4 | . . . 4 Best Kill Streak 4 | . 2 1 4 Combat Bots Only 4 | . 2 . 4 Max Kills in Single Turn 1 | . 1 1 1 Gunslinging . | . . . . Exploded . | . . . . Melee . | . . . . Uniques/NPCs Destroyed . | . . . . Combat | -11 -10 -9 -9 -------- Run | Yrd Mat Mat Min Hostile Shots Fired 76 | . 13 . 63 Missed 19 | . . . 19 Damage Taken 1014 | . 148 . 866 Core 421 | . 12 . 409 Absorbed by Shields . | . . . . Core Remaining (%) 97 | 100 95 . . Volleys Fired 22 | . 9 1 12 Largest 2 | . 2 2 2 Hottest 90 | . 60 90 90 Shots Fired 35 | . 18 2 15 Gun 35 | . 18 2 15 Cannon . | . . . . Launcher . | . . . . Special . | . . . . Kinetic 9 | . 9 . . Thermal 13 | . . 1 12 Explosive . | . . . . Electromagnetic 13 | . 9 1 3 Robot Hit Streak 9 | . 7 9 3 Robot Miss Streak 8 | . 1 . 8 Penetration Max . | . . . . Secondary Targets 1 | . . . 1 Max Gunslinging Chain 1 | . . . 1 Shots Hit Robots 23 | . 15 2 6 Core Hits 13 | . 4 . 9 Critical Kills . | . . . . Critical Parts Destroyed . | . . . . Critical Strikes . | . . . . Melee Attacks . | . . . . Impact . | . . . . Slashing . | . . . . Piercing . | . . . . Sneak Attacks . | . . . . Combat Hostiles . | . . . . Follow-up Attacks . | . . . . Damage Inflicted 394 | . 203 60 131 Guns 345 | . 199 15 131 Cannons . | . . . . Explosions 45 | . . 45 . Melee . | . . . . Ramming 4 | . 4 . . Kinetic 73 | . 73 . . Thermal 144 | . . 45 99 Explosive . | . . . . Electromagnetic 173 | . 126 15 32 Impact . | . . . . Slashing . | . . . . Piercing . | . . . . Highest Corruption . | . . . . Average Corruption . | . . . . Corruption Purged . | . . . . Corruption Blocked . | . . . . Overload Shots . | . . . . Overflow Damage 15 | . . 15 . Projectiles . | . . . . Explosions 15 | . . 15 . Melee . | . . . . Knockbacks . | . . . . Impact . | . . . . Kinetic . | . . . . Secondary . | . . . . Self-Inflicted Damage . | . . . . Shots . | . . . . Rammed . | . . . . Targets Rammed 2 | . 2 . . Kicked 2 | . 2 . . Crushed . | . . . . Highest Temperature 233 | . 72 21 233 Average Temperature 83 | . 41 10 120 Received Heat Transfer 338 | . 78 . 260 Siege Activations . | . . . . Robots Corrupted . | . . . . Combat Hostiles . | . . . . Parts Fried . | . . . . Impact Corruptions . | . . . . Robots Melted . | . . . . Combat Hostiles . | . . . . Parts Melted . | . . . . Heat Transferred 346 | . . 50 296 Parts Sabotaged . | . . . . Parts Stolen . | . . . . Parts Stripped . | . . . . Power Chain Reactions 1 | . . 1 . Alert | -11 -10 -9 -9 ------- Run | Yrd Mat Mat Min Peak Influence 80 | . 80 59 22 Initial 33 | . . 33 22 Average 21 | . 23 37 8 Maximum Alert Level . | . . . . Low Security (%) 100 | 100 100 100 100 Level 1 . | . . . . Level 2 . | . . . . Level 3 . | . . . . Level 4 . | . . . . Level 5 . | . . . . High Security . | . . . . Max Security . | . . . . Squads Dispatched 1 | . 1 . . Investigation . | . . . . Extermination . | . . . . Reinforcement 1 | . 1 . . Assault . | . . . . Garrison . | . . . . Intercept . | . . . . Searches Triggered . | . . . . Construction Impeded . | . . . . Haulers Reinforced . | . . . . Active Scanning Responses . | . . . . Cargo Convoy Interrupts . | . . . . Stealth | -11 -10 -9 -9 --------- Run | Yrd Mat Mat Min Distress Signals 1 | . 1 . . Communications Jammed . | . . . . Distress Signals . | . . . . Times Spotted 30 | . 5 1 24 Peak Tracking Total 21 | . 3 . 21 Tactical Retreats 3 | . 1 . 2 Traps | -11 -10 -9 -9 ------- Run | Yrd Mat Mat Min Traps Triggered 1 | . 1 . . Indirectly . | . . . . Trap Hack Attempts . | . . . . Triggered . | . . . . Disarmed . | . . . . Reprogrammed . | . . . . Reused . | . . . . Traps Extracted . | . . . . Installed . | . . . . Triggered . | . . . . Machines | -11 -10 -9 -9 ---------- Run | Yrd Mat Mat Min Machines Disabled . | . . . . Max in Single Turn . | . . . . Machines Repaired . | . . . . Machines Dismantled . | . . . . Machines Sabotaged . | . . . . Overloaded Fab Kills . | . . . . Hacking | -11 -10 -9 -9 --------- Run | Yrd Mat Mat Min Machines Accessed 1 | . 1 . . Terminals 1 | . 1 . . Fabricators . | . . . . Repair Stations . | . . . . Recycling Units . | . . . . Scanalyzers . | . . . . Garrison Access . | . . . . Total Hacks 1 | . 1 . . Successful 1 | . 1 . . Failed . | . . . . Catastrophic . | . . . . Database Lockouts . | . . . . Manual . | . . . . Terminals 1 | . 1 . . Fabricators . | . . . . Repair Stations . | . . . . Recycling Units . | . . . . Scanalyzers . | . . . . Garrison Access . | . . . . Terminal Hacks 1 | . 1 . . Alert Level 1 | . 1 . . Fabricator Hacks . | . . . . Repair Station Hacks . | . . . . Recycling Unit Hacks . | . . . . Scanalyzer . | . . . . Garrison Access Hacks . | . . . . Unauthorized Hacks . | . . . . Terminals . | . . . . Fabricators . | . . . . Repair Stations . | . . . . Recycling Units . | . . . . Scanalyzers . | . . . . Garrison Access . | . . . . Data Cores Recovered 1 | . . 1 . Used . | . . . . Hacking Detections . | . . . . Full Trace Events . | . . . . Feedback Events . | . . . . Feedback Blocked . | . . . . Robot Schematics Acquired . | . . . . Robots Built . | . . . . Authchips . | . . . . Time . | . . . . Total Robot Build Rating . | . . . . Part Schematics Acquired . | . . . . Parts Built . | . . . . Authchips . | . . . . Time . | . . . . Total Part Build Rating . | . . . . Parts Repaired . | . . . . Time . | . . . . Parts Recycled . | . . . . Recycled Matter . | . . . . Retrieved Matter . | . . . . Retrieved Components . | . . . . Parts Scanalyzed . | . . . . Part Schematics Acquired . | . . . . Parts Damaged . | . . . . Bothacking | -11 -10 -9 -9 ------------ Run | Yrd Mat Mat Min Used RIF Installer . | . . . . Robots Hacked . | . . . . Non-combat . | . . . . Combat . | . . . . Robot Hacks Applied . | . . . . Relay Couplers Released . | . . . . Fabnet Peak Effective % . | . . . . Robots Rewired . | . . . . Allies Hacked . | . . . . Hacks Repelled . | . . . . Allies | -11 -10 -9 -9 -------- Run | Yrd Mat Mat Min Total Allies . | . . . . Largest Group . | . . . . Highest-Rated Group . | . . . . Highest-Rated Ally . | . . . . Total Orders . | . . . . Ally Attacks . | . . . . Total Damage . | . . . . Kills . | . . . . Allies Corrupted . | . . . . Allies Melted . | . . . . Intel | -11 -10 -9 -9 ------- Run | Yrd Mat Mat Min Robot Analysis Total . | . . . . Derelict Logs Recovered . | . . . . Drone Launches . | . . . . Drone Recoveries . | . . . . Exploration | -11 -10 -9 -9 ------------- Run | Yrd Mat Mat Min Turns Passed 456 | 78 235 99 44 Spaces Moved 287 | 62 131 80 14 Core 31 | 26 . . 5 Treads . | . . . . Legs 256 | 36 131 80 9 Wheels . | . . . . Hover . | . . . . Flight . | . . . . Fastest Speed 50 | 50 120 120 100 Average Speed 117 | 105 120 120 126 Slowest Speed 190 | 150 120 120 190 Overloaded Moves . | . . . . Propulsion Burnouts . | . . . . Robots Hopped . | . . . . Cave-ins Triggered . | . . . . Exploration Rate (%) 14 | 3 30 11 13 Regions Visited 3 Branch Regions 1 Pre-discovered Areas . | . . . . Known Exits Taken . | . . . . Unknown Exits Taken 3 | 1 1 1 . Scrap Searched . | . . . . Spaces Dug . | . . . . Terrain Destroyed 6 | . . 6 . Melee . | . . . . Projectile . | . . . . AOE 6 | . . 6 . Terrain Rammed . | . . . . Walls Destroyed . | . . . . Machines Disabled . | . . . . Actions | -11 -10 -9 -9 --------- Run | Yrd Mat Mat Min Total 368 | 72 189 81 26 Wait 44 | 3 41 . . Move 284 | 61 130 79 14 Hop . | . . . . Pick Up 4 | 2 2 . . Fast Attach 8 | 6 2 . . Attach 3 | . 2 1 . Detach . | . . . . Swap 1 | . 1 . . Drop . | . . . . Fire 22 | . 9 1 12 Melee . | . . . . Ram . | . . . . Kick 2 | . 2 . . Crush . | . . . . Escape Stasis . | . . . . Rewire . | . . . . Trap . | . . . . Miscellaneous . | . . . . Route ------- -11/Scrapyard -10/Materials -9/Materials -9/Mines History --------- Turn | Location | Event 21 | -11/Scrapyard | Discovered new exit (range 16) 79 | -11/Scrapyard | Entered Materials 267 | -10/Materials | Discovered new exit (range 13) 314 | -10/Materials | Entered another Materials area 314 | -9/Materials | Evolved 2 slots: Propulsion x2 335 | -9/Materials | Build established: Mutant 407 | -9/Materials | Discovered new exit (range 6) 413 | -9/Materials | Entered Mines 414 | -9/Mines | Assembled infested the area 446 | -9/Mines | Core integrity fell below 50% 456 | -9/Mines | Core integrity fell below 20% 457 | -9/Mines | Destroyed by D-53 Grenadier with Mini Grenade Launcher Last Messages --------------- 00421_ L-31 Rogue Imp. Aluminum Leg severed. 00422_ as-50964 destroyed. 00423_ as-51684 destroyed. 00424_ L-31 Rogue destroyed. 00424_ EM Pulse Gun destroyed. 00431_ Aluminum Leg destroyed. 00442_ as-37420 destroyed. 00444_ C-30 ARC bursts open, deploying its payload. 00444_ D-53 Grenadier unfolds itself. 00446_ as-85268 destroyed. 00446_ as-37971 destroyed. 00446_ as-35267 destroyed. 00446_ as-90969 destroyed. 00446_ as-74289 destroyed. 00448_ Aluminum Leg destroyed. 00452_ The unstable cave ceiling collapses. 00452_ Lgt. Ion Engine destroyed. 00452_ Aluminum Leg destroyed. 00453_ Med. Laser destroyed. 00455_ as-61427 destroyed. Map ----- +----------------------------------------------------+ | ?????????????????????????????????????????????????? | | ?????????????????????????????????????????????????? | | ?????????????????????????????????????????????????? | | ?????????????????????????????????????????????????? | | ?????????????????????????????????????????????????? | | ?????????????????????????????????????????????????? | | ?????????????????????????????????????????????????? | | ?????????????????????????????????????????????????? | | ?????????????????????????????????????????????????? | | ?????????????????????????????????????????????????? | | ?????????????????????????????????????????????????? | | ??????????????????????????????####???????????????? | | ?????????????????????????????? #### ?????????????? | | ?????????????????????????????? ### ?????????????? | | ???????????????????????????##" ?????????????? | | ?????????????????????########%" ????????????????? | | ???????????######???######## " ?????????????????? | | ??????????############# ##?????????????????? | | ??????????### = ###### ###?????????????????? | | ??????????## %[ ## # dd ##??????????????????? | | ?????????### ###??????????????????? | | ?????????### #####?????????????????? | | ?????????## ######????????????????? | | ?????????## ## ####?? ??????????? | | ?????????### ## ##??????????? | | ?????????##### @a a ##??????????? | | ??????????####### a ###?????????? | | ????????????##### a a a ##?????????? | | ??????????????## ?????????? | | ?????????## < ?????????? | | ?????????## % a ## ## ?????????? | | ?????????### ## ## ### ### #### ?????????? | | ?????????######## ### ########?#####?????????? | | ??????????########### #######????????????????? | | ???????????????#####? ????????????????????? | | ???????????????????? #### ????????????????????? | | ?????????????????? #### ????????????????????? | | ??????????????????## ##???????????????????????? | | ??????????????????### ###???????????????????????? | | ??????????????????########???????????????????????? | | ???????????????????#####?????????????????????????? | | ?????????????????????????????????????????????????? | | ?????????????????????????????????????????????????? | | ?????????????????????????????????????????????????? | | ?????????????????????????????????????????????????? | | ?????????????????????????????????????????????????? | | ?????????????????????????????????????????????????? | | ?????????????????????????????????????????????????? | | ?????????????????????????????????????????????????? | | ?????????????????????????????????????????????????? | +----------------------------------------------------+ Best States ------------- Heat Dissipation 28 Energy Generation 10 Energy Capacity 250 Matter Stores 295 Matter Capacity 300 Sight Range 16 Terrain Scan Density 10 Evasion (%) 55 Item Schematics ----------------- None Robot Schematics ------------------ None Fabricated ------------ Nothing Alien Tech Used ----------------- None Achievements -------------- None Challenges ------------ None Game ------ Seed WaveCobblerExtractor Manual? 0 Play Time 00:05:26 Cumulative 9.4 hours Start 2025.01.04 @ 14:18:07 End 2025.01.04 @ 14:23:15 Sessions 1 Manual Loads 0 Difficulty Rogue Special Mode None Game No. 23 Rogue 23 Adventurer 0 Explorer 0 Win Type - Total 0 Types 0/0/0/0/0/0/0/0/0 Lore% 2 Gallery% 19 Achievement% 16 Wizard Run 0 Options --------- Layout 0 ASCII 0 Keyboard 0 Movement Numpad Keybinds 0 Fullscreen 2 Font 18/Terminus Map View 76x50 Zoom Use 0% Tactical HUD 1 Map Filters NONE Filters NONE Steam 1 RUN: 6edc7990-60a8-47d7-8ee1-e69ba4cd5b42